bitfinex/quotes_SOLUSD_20241117
["timestamp","ask_amount","ask_price","bid_price","bid_amount"]
[1731848226617,4.2605,234.71,234.63,37.0317]
[1731848228827,4.2605,234.71,234.63,32.7698]
[1731848229628,6.62903083,234.74,234.63,43.4248]
[1731848229801,4.2599,234.75,234.63,47.6867]
[1731848230223,10.88893083,234.75,234.63,47.6867]
[1731848230701,4.2599,234.75,234.63,47.6867]
[1731848230912,10.88893083,234.75,234.63,47.6867]
[1731848231210,4.2599,234.75,234.63,47.6867]
[1731848231403,10.88893083,234.75,234.63,47.6867]
[1731848232117,6.62903083,234.74,234.63,47.6867]
[1731848232319,6.62903083,234.75,234.63,47.6867]
[1731848232516,6.62903083,234.76,234.63,47.6867]
[1731848232910,10.88873083,234.76,234.63,47.6867]
[1731848233510,4.2597,234.76,234.63,47.6867]
[1731848235637,4.2597,234.76,234.65,14.9157]
[1731848236229,10.88843083,234.78,234.65,14.9157]
[1731848236607,6.62903083,234.78,234.66,43.776884]
[1731848236818,6.62903083,234.79,234.68,20.0]
[1731848237013,10.88803083,234.8,234.68,20.0]
[1731848237807,10.88803083,234.8,234.69,14.9132]
[1731848240531,6.75452083,234.79,234.69,10.6523]
[1731848241435,4.2594,234.77,234.69,10.6523]
[1731848242011,24.027864,234.76,234.63,43.4245]
[1731848242211,24.027864,234.74,234.63,43.4245]
[1731848242434,6.62903083,234.75,234.63,43.4245]
[1731848242640,6.62903083,234.76,234.63,43.4245]
[1731848242929,24.027864,234.75,234.63,43.4245]
[1731848243112,4.26,234.74,234.63,47.6864]
[1731848244204,4.2603,234.72,234.63,47.6864]
[1731848245325,0.12549,234.73,234.63,47.6864]
[1731848245524,6.75452083,234.73,234.63,47.6864]
[1731848246840,4.2603,234.72,234.63,47.6864]
[1731848248219,4.2603,234.72,234.63,43.4245]
[1731848250945,24.027864,234.71,234.63,32.7698]
[1731848251127,0.09367462,234.7,234.57,32.5794]
[1731848251331,0.09367462,234.7,234.57,36.8424]
[1731848251537,0.09367462,234.7,234.59,10.6567]
[1731848252833,0.12549,234.68,234.59,10.6567]
[1731848254061,4.51188,234.69,234.59,10.6567]
[1731848254755,4.2609,234.69,234.6,15.9188]
[1731848255249,23.902374,234.68,234.6,11.6564]
[1731848255568,23.902374,234.68,234.6,1.0]
[1731848256143,4.2613,234.67,234.6,1.0]
[1731848260334,23.902374,234.66,234.6,1.0]
[1731848260883,0.09367462,234.6,234.52,2.0]
[1731848261050,0.34465462,234.6,234.52,2.0]
[1731848262035,0.12549,234.6,234.52,2.0]
[1731848262450,4.2618,234.64,234.52,6.2639]
[1731848264239,4.2618,234.64,234.52,16.9239]
[1731848265047,10.6532,234.67,234.52,16.9239]
[1731848265956,23.902374,234.66,234.52,16.9239]
[1731848266539,4.2616,234.65,234.52,16.9239]
[1731848266960,4.2616,234.65,234.53,20.0]
[1731848267634,4.2616,234.65,234.52,16.9239]
[1731848269257,28.288964,234.68,234.52,16.9239]
[1731848269861,0.09367462,234.67,234.52,16.9239]
[1731848270565,0.09367462,234.67,234.52,12.66]
[1731848270743,0.09367462,234.63,234.52,2.0]
[1731848271061,0.25098,234.6,234.52,2.0]
[1731848271256,4.2627,234.59,234.52,2.0]
[1731848273439,34.431984,234.63,234.52,2.0]
[1731848273644,4.38769,234.62,234.52,2.0]
[1731848274853,4.2622,234.62,234.52,6.2639]
[1731848275442,23.902374,234.66,234.52,16.9239]
[1731848276471,4.2616,234.65,234.52,16.9239]
[1731848278273,4.2607,234.7,234.55,20.25098]
[1731848278946,4.2607,234.7,234.55,20.0]
[1731848279342,23.902374,234.69,234.55,20.0]
[1731848280153,4.2611,234.68,234.56,14.9215]
[1731848280878,23.902374,234.67,234.56,10.6582]
[1731848281955,4.2614,234.66,234.56,10.6582]
[1731848285364,23.902374,234.65,234.54,48.7328]
[1731848286677,23.902374,234.65,234.54,59.3919]
[1731848287471,4.2618,234.64,234.54,59.3919]
[1731848290476,4.2613,234.67,234.54,59.3919]
[1731848291682,0.09367462,234.69,234.54,59.3919]
[1731848292062,23.776884,234.69,234.55,20.0]
[1731848292274,4.2607,234.7,234.55,20.0]
[1731848293163,4.2607,234.7,234.56,14.9215]
[1731848293686,4.2607,234.7,234.57,20.0]
[1731848294382,4.2607,234.7,234.58,14.9202]
[1731848294590,24.027864,234.69,234.58,14.9202]
[1731848295478,24.027864,234.69,234.58,10.6573]
[1731848295668,24.027864,234.69,234.58,14.9202]
[1731848296060,30.71675271,234.69,234.58,14.9202]
[1731848296263,0.12549,234.67,234.58,10.6573]
[1731848297190,6.81437871,234.69,234.58,10.6573]
[1731848297361,4.2614,234.67,234.58,10.6573]
[1731848299002,6.81437871,234.69,234.58,10.6573]
[1731848299003,6.68888871,234.69,234.59,43.776884]
[1731848299289,6.68888871,234.7,234.59,43.776884]
[1731848300186,6.68888871,234.7,234.61,14.9182]
[1731848300392,6.68888871,234.7,234.62,35.970384]
[1731848300769,6.68888871,234.7,234.62,12.1935]
[1731848301877,6.68888871,234.71,234.62,12.1935]
[1731848302371,6.68888871,234.71,234.63,14.917]
[1731848302966,6.68888871,234.72,234.63,14.917]
[1731848303869,10.94868871,234.75,234.63,14.917]
[1731848304065,4.2598,234.75,234.63,14.917]
[1731848305381,6.68888871,234.77,234.64,43.776884]
[1731848305573,13.37777743,234.78,234.66,43.776884]
[1731848305574,6.68888871,234.78,234.66,43.776884]
[1731848305989,4.2592,234.79,234.66,43.776884]
[1731848306695,4.2592,234.79,234.67,14.9145]
[1731848307997,4.38419,234.81,234.67,14.9145]
[1731848308382,23.99604862,234.78,234.65,32.888]
[1731848308695,0.12549,234.75,234.65,37.1495]
[1731848308895,0.25098,234.75,234.65,37.1495]
[1731848309694,4.26,234.74,234.65,37.1495]
[1731848309901,4.26,234.74,234.65,47.8036]
[1731848310077,6.68888871,234.79,234.65,47.8036]
[1731848310078,0.25098,234.78,234.65,47.8036]
[1731848310272,10.94818871,234.78,234.65,47.8036]
[1731848310471,4.259,234.8,234.66,23.776884]
[1731848311582,4.259,234.8,234.67,14.9145]
[1731848312601,4.60315462,234.82,234.67,14.9145]
[1731848313199,4.2585,234.82,234.7,23.776884]
[1731848313695,4.2585,234.82,234.69,13.2999]
[1731848314579,0.12549,234.81,234.7,4.2607]
[1731848315703,4.2589,234.8,234.7,4.2607]
[1731848316003,4.2589,234.8,234.7,14.9125]
[1731848317604,0.34465462,234.77,234.66,4.2614]
[1731848317809,44.12153862,234.77,234.65,32.888]
[1731848318015,75.99373862,234.77,234.6,10.6561]
[1731848318794,82.68262733,234.77,234.6,14.9185]
[1731848318981,24.12153862,234.75,234.6,14.9185]
[1731848319981,0.25098,234.72,234.6,14.9185]
[1731848320387,4.26,234.74,234.6,14.9185]
[1731848320577,4.26,234.74,234.61,20.0]
[1731848321396,4.35327462,234.76,234.62,14.9177]
[1731848322103,0.12549,234.75,234.62,14.9177]
[1731848323307,4.38539,234.75,234.62,14.9177]
[1731848327407,31.8722,234.77,234.63,43.776884]
[1731848327607,36.1318,234.77,234.63,43.776884]
[1731848328622,36.1318,234.77,234.64,14.9164]
[1731848329796,17.33538871,234.82,234.64,14.9164]
[1731848329797,4.2592,234.79,234.65,23.776884]
[1731848330310,4.2588,234.81,234.68,20.0]
[1731848330499,36.1307,234.83,234.69,23.776884]
[1731848330702,4.2585,234.83,234.69,23.776884]
[1731848331720,4.2585,234.83,234.7,14.9125]
[1731848332220,10.94718871,234.84,234.71,23.902374]
[1731848332524,4.2583,234.84,234.71,23.902374]
[1731848333321,4.2578,234.86,234.72,14.9112]
[1731848336315,4.2578,234.86,234.74,14.91]
[1731848337424,4.2578,234.86,234.74,10.65]
[1731848339019,11.07177871,234.88,234.74,10.65]
[1731848342322,4.2574,234.88,234.76,32.702]
[1731848342520,4.2574,234.88,234.77,32.0524]
[1731848344108,4.2574,234.88,234.78,14.9075]
[1731848348625,10.94598871,234.9,234.78,14.9075]
[1731848349210,0.12549,234.89,234.78,14.9075]
[1731848350121,6.68888871,234.88,234.78,14.9075]
[1731848350319,4.2576,234.87,234.78,14.9075]
[1731848352303,10.94648871,234.87,234.78,14.9075]
[1731848354832,4.2576,234.87,234.78,14.9075]
[1731848355021,6.68888871,234.88,234.79,20.0]
[1731848355220,6.68888871,234.89,234.79,20.0]
[1731848356238,10.94608871,234.9,234.79,20.0]
[1731848356427,10.94608871,234.9,234.8,14.9062]
[1731848357814,4.2572,234.9,234.8,14.9062]
[1731848359633,10.94588871,234.91,234.8,14.9062]
[1731848360525,26.75555487,234.93,234.8,14.9062]
[1731848360526,6.68888871,234.93,234.83,20.0]
[1731848360715,10.94508871,234.95,234.84,12.5031]
[1731848360917,6.68888871,234.94,234.84,12.5031]
[1731848361417,10.94508871,234.95,234.84,12.5031]
[1731848361619,10.94508871,234.95,234.85,14.903]
[1731848362428,6.68888871,234.95,234.85,14.903]
[1731848362625,10.94508871,234.95,234.85,14.903]
[1731848362819,40.1333323,235.0,234.85,14.903]
[1731848362820,6.68888871,234.98,234.88,20.12549]
[1731848363034,0.2164523,235.03,234.92,20.0]
[1731848363622,0.2164523,235.03,234.93,14.8979]
[1731848366029,0.09367462,235.02,234.93,14.8979]
[1731848366232,0.34465462,235.02,234.93,14.8979]
[1731848366439,0.34465462,235.02,234.93,10.6414]
[1731848367251,0.34465462,235.02,234.91,31.1179]
[1731848367540,0.34465462,235.0,234.91,31.1179]
[1731848367854,4.2555,234.99,234.91,35.3747]
[1731848368152,4.2555,234.99,234.91,31.1179]
[1731848368453,4.2555,234.99,234.9,4.257]
[1731848373856,20.0,235.01,234.9,4.257]
[1731848374032,4.2551,235.01,234.9,4.257]
[1731848374440,4.4713523,235.03,234.9,4.257]
[1731848375449,0.2164523,235.03,234.93,20.0]
[1731848376553,0.2164523,235.03,234.94,14.8974]
[1731848378756,0.2164523,235.03,234.95,13.2375]
[1731848378932,0.2164523,235.03,234.96,14.8961]
[1731848380460,4.4712523,235.03,234.96,14.8961]
[1731848380631,4.4712523,235.03,234.96,10.6401]
[1731848381463,4.4712523,235.03,234.96,14.8961]
[1731848383551,0.2164523,235.03,234.96,14.8961]
[1731848383740,4.38039,235.02,234.92,10.6418]
[1731848383939,0.12549,234.99,234.9,14.2475]
[1731848384139,0.12549,234.99,234.9,18.5046]
[1731848384453,20.12549,235.0,234.9,18.5046]
[1731848384658,0.12549,235.0,234.9,18.5046]
[1731848384859,0.25098,235.0,234.9,18.5046]
[1731848385354,4.2555,234.99,234.9,18.5046]
[1731848386258,0.25098,234.98,234.9,14.2475]
[1731848386459,0.25098,234.98,234.9,1.01]
[1731848387145,4.2558,234.97,234.9,1.01]
[1731848387973,0.25098,234.96,234.9,1.01]
[1731848389545,0.12549,234.94,234.9,1.01]
[1731848392944,0.12549,234.94,234.9,1.01]
[1731848393141,4.2562,234.95,234.9,1.01]
[1731848393554,0.12549,234.94,234.9,1.01]
[1731848393751,0.25098,234.94,234.9,1.01]
[1731848396270,0.09367462,234.87,234.73,32.8914]
[1731848396489,20.09367462,234.83,234.73,34.2414]
[1731848396774,0.25098,234.82,234.73,34.2414]
[1731848397154,0.25098,234.8,234.73,32.8914]
[1731848397477,4.2587,234.81,234.73,32.8914]
[1731848397765,0.12549,234.82,234.72,4.2602]
[1731848397951,0.12549,234.85,234.72,14.9111]
[1731848399274,4.50858,234.87,234.72,14.9111]
[1731848401066,0.34465462,234.84,234.72,14.9111]
[1731848401272,24.12153862,234.82,234.68,0.7393087]
[1731848401570,0.09367462,234.76,234.64,32.8914]
[1731848401752,0.34465462,234.74,234.62,14.9171]
[1731848401954,20.0,234.73,234.62,14.9171]
[1731848402153,0.25098,234.72,234.62,14.9171]
[1731848402460,0.12549,234.72,234.62,14.9171]
[1731848402660,4.38599,234.72,234.62,10.6551]
[1731848403267,4.38599,234.72,234.59,4.2627]
[1731848403268,0.21916462,234.71,234.59,4.2627]
[1731848403456,0.21916462,234.71,234.58,45.8508]
[1731848403457,0.12549,234.69,234.58,12.9594]
[1731848403653,0.09367462,234.66,234.55,4.2633]
[1731848403862,0.12549,234.65,234.55,4.2633]
[1731848404060,20.12549,234.66,234.55,4.2633]
[1731848404350,20.25098,234.7,234.55,14.922]
[1731848404758,24.51188,234.7,234.55,14.922]
[1731848404955,4.51188,234.7,234.55,14.922]
[1731848406953,4.2598,234.75,234.56,44.027864]
[1731848407556,12.2845,234.77,234.57,0.1]
[1731848407557,16.544,234.77,234.57,0.1]
[1731848407755,16.544,234.77,234.56,44.027864]
[1731848408256,0.25098,234.76,234.56,44.027864]
[1731848408458,4.2598,234.75,234.57,36.2363]
[1731848408778,24.12153862,234.72,234.57,36.2363]
[1731848408957,20.0,234.71,234.57,36.2363]
[1731848409280,0.25098,234.7,234.57,36.2363]
[1731848409779,0.09367462,234.69,234.57,10.6577]
[1731848410081,20.25098,234.68,234.57,14.9208]
[1731848410258,0.09367462,234.67,234.57,14.9208]
[1731848410455,4.2614,234.66,234.57,10.6577]
[1731848410785,4.2614,234.66,234.52,25.6193]
[1731848410786,0.34465462,234.65,234.52,25.6193]
[1731848411077,0.34465462,234.65,234.52,12.6599]
[1731848411284,0.34465462,234.65,234.52,16.9239]
[1731848412573,0.34465462,234.63,234.52,16.9239]
[1731848412880,0.34465462,234.63,234.52,12.6599]
[1731848412881,0.34465462,234.61,234.52,12.6599]
[1731848413188,0.34465462,234.61,234.52,2.0]
[1731848414353,0.25098,234.59,234.52,2.0]
[1731848414556,0.12549,234.59,234.52,6.2639]
[1731848414776,13.3194,234.66,234.52,16.9239]
[1731848415055,17.581,234.66,234.52,16.9239]
[1731848415575,0.09367462,234.65,234.52,16.9239]
[1731848415878,0.09367462,234.63,234.52,12.66]
[1731848416075,0.34465462,234.63,234.52,16.924]
[1731848416572,0.25098,234.63,234.52,16.924]
[1731848417358,4.2622,234.62,234.52,16.924]
[1731848418388,0.34465462,234.62,234.52,16.924]
[1731848419176,0.34465462,234.62,234.52,2.0]
[1731848420955,0.34465462,234.6,234.52,2.0]
[1731848422384,0.12549,234.58,234.52,2.0]
[1731848423470,4.2631,234.58,234.52,2.0]
[1731848425077,4.2616,234.65,234.52,16.9239]
[1731848425379,35.8159,234.69,234.53,32.7903]
[1731848425584,35.8159,234.69,234.54,12.3901]
[1731848427192,35.8159,234.69,234.55,14.9221]
[1731848429982,4.2613,234.67,234.55,14.9221]
[1731848430175,31.5549,234.69,234.55,14.9221]
[1731848430383,20.0,234.72,234.56,0.25098]
[1731848431274,4.2602,234.73,234.57,14.9208]
[1731848431673,0.25098,234.72,234.57,14.9208]
[1731848432075,0.09367462,234.71,234.57,10.6577]
[1731848432565,0.09367462,234.71,234.57,14.9208]
[1731848433595,0.12549,234.69,234.57,10.6577]
[1731848434671,4.2611,234.68,234.57,10.6577]
[1731848435693,0.21916462,234.71,234.57,10.6577]
[1731848435694,0.12549,234.69,234.57,10.6577]
[1731848436691,4.2611,234.68,234.57,10.6577]
[1731848436903,4.2611,234.68,234.55,4.2634]
[1731848437795,4.2611,234.68,234.55,14.9221]
[1731848438672,20.0,234.69,234.55,14.9221]
[1731848438673,4.2614,234.66,234.55,10.6587]
[1731848438899,0.25098,234.65,234.55,10.6587]
[1731848440077,4.51238,234.66,234.55,10.6587]
[1731848440681,20.09367462,234.65,234.53,32.7903]
[1731848440884,0.09367462,234.61,234.52,2.0]
[1731848441980,20.34465462,234.59,234.52,2.0]
[1731848443600,12.94417462,234.57,234.52,2.0]
[1731848443896,0.09367462,234.55,234.5,1.0]
[1731848444075,0.34465462,234.53,234.5,1.0]
[1731848444590,0.34465462,234.51,234.44,0.2507384]
[1731848446286,20.34465462,234.49,234.44,0.2507384]
[1731848447101,20.25098,234.49,234.44,0.2507384]
[1731848447283,20.0,234.49,234.44,0.2507384]
[1731848448102,0.09367462,234.48,234.44,0.2507384]
[1731848448301,0.09367462,234.46,234.44,0.2507384]
[1731848448793,0.21916462,234.45,234.44,0.2507384]
[1731848448997,0.34465462,234.45,234.44,0.2507384]
[1731848450381,4.60995462,234.45,234.44,0.2507384]
[1731848450979,3.58938462,234.45,234.44,0.2507384]
[1731848451395,23.58938462,234.45,234.44,0.2507384]
[1731848452803,30.44838824,234.45,234.44,0.2507384]
[1731848453006,30.79304286,234.45,234.44,0.2507384]
[1731848453186,30.79304286,234.45,234.22,12.9106]
[1731848453187,20.09367462,234.39,234.22,12.9106]
[1731848453505,20.0,234.39,234.22,17.1799]
[1731848454093,20.34465462,234.44,234.22,17.1799]
[1731848454882,0.34465462,234.42,234.23,0.12549]
[1731848455307,20.34465462,234.42,234.23,0.12549]
[1731848455599,20.34465462,234.42,234.22,27.8536]
[1731848456884,4.266,234.41,234.23,0.12549]
[1731848457083,0.12549,234.4,234.23,0.25098]
[1731848458100,4.266,234.41,234.25,0.25098]
[1731848458302,4.2653,234.45,234.27,0.25098]
[1731848458994,4.2653,234.45,234.27,0.12549]
[1731848459398,0.09367462,234.44,234.28,14.9392]
[1731848459906,4.2646,234.49,234.31,0.35098]
[1731848460089,31.0431,234.54,234.34,0.12549]
[1731848460292,12.0732,234.57,234.35,0.22549]
[1731848460293,4.2638,234.53,234.35,0.22549]
[1731848460619,4.2638,234.53,234.38,33.0345]
[1731848460910,4.2638,234.53,234.39,0.25098]
[1731848461092,0.09367462,234.57,234.38,33.0345]
[1731848461289,0.09367462,234.57,234.39,14.9322]
[1731848461488,14.9204,234.58,234.39,14.9322]
[1731848461688,0.34465462,234.57,234.39,10.6659]
[1731848462105,0.09367462,234.54,234.38,33.0345]
[1731848462291,0.34465462,234.54,234.38,33.0345]
[1731848463311,20.34465462,234.46,234.32,33.0345]
[1731848464004,20.34465462,234.46,234.3,13.2476]
[1731848464306,20.34465462,234.46,234.28,10.6709]
[1731848465215,20.34465462,234.44,234.28,10.6709]
[1731848465390,20.34465462,234.44,234.27,37.303]
[1731848466491,0.25098,234.42,234.27,47.9744]
[1731848466893,0.12549,234.42,234.27,47.9744]
[1731848467197,4.2656,234.43,234.27,47.9744]
[1731848467705,0.12549,234.4,234.27,47.9744]
[1731848467908,4.266,234.41,234.27,47.9744]
[1731848468711,26.79452053,234.44,234.27,43.7059]
[1731848468712,0.25098,234.42,234.27,43.7059]
[1731848468915,0.09367462,234.41,234.24,13.2476]
[1731848469098,20.34465462,234.39,234.24,13.2476]
[1731848469292,20.25098,234.39,234.22,14.943]
[1731848470289,4.2665,234.38,234.22,14.943]
[1731848470994,20.0,234.36,234.22,14.943]
[1731848471392,20.0,234.34,234.22,14.943]
[1731848471804,20.0,234.37,234.22,14.943]
[1731848472003,43.776884,234.37,234.22,14.943]
[1731848472598,4.2669,234.36,234.22,14.943]
[1731848473009,20.0,234.34,234.22,14.943]
[1731848473396,4.2669,234.36,234.22,14.943]
[1731848475607,23.776884,234.34,234.22,10.6736]
[1731848475812,0.08499376,234.23,234.22,10.6736]
[1731848475992,0.08499376,234.23,234.21,33.0345]
[1731848476495,0.08499376,234.23,234.2,0.4671907]
[1731848476700,0.33597376,234.23,234.08,4.2719]
[1731848476897,24.11285776,234.23,234.08,4.2719]
[1731848477116,20.0,234.2,234.07,30.699]
[1731848477422,23.776884,234.15,234.03,4.2729]
[1731848477620,24.271,234.14,234.03,4.2729]
[1731848477828,0.12549,234.21,234.02,11.4255559]
[1731848478024,23.902374,234.2,234.05,13.94060498]
[1731848478318,20.0,234.19,234.05,13.94060498]
[1731848479093,23.776884,234.16,234.05,9.66820498]
[1731848479715,4.2702,234.18,234.05,24.62200498]
[1731848481027,20.0,234.19,234.05,24.62200498]
[1731848481208,4.2698,234.2,234.06,0.25098]
[1731848481902,4.2695,234.22,234.06,24.027864]
[1731848482419,24.027864,234.21,234.05,24.62200498]
[1731848482604,23.776884,234.21,234.05,24.62200498]
[1731848482923,4.2695,234.22,234.05,24.62200498]
[1731848483400,20.0,234.2,234.05,24.62200498]
[1731848483602,23.776884,234.19,234.05,24.62200498]
[1731848483800,0.08499376,234.23,234.06,0.25098]
[1731848484012,4.2698,234.21,234.07,14.9527]
[1731848484212,0.08499376,234.23,234.09,0.1]
[1731848484517,0.08499376,234.23,234.13,24.127864]
[1731848484696,0.08499376,234.23,234.13,0.25098]
[1731848486112,0.08499376,234.23,234.14,14.9482]
[1731848486607,4.35439376,234.23,234.14,14.9482]
[1731848486818,4.35439376,234.23,234.08,10.6797]
[1731848486819,23.776884,234.22,234.08,10.6797]
[1731848487709,20.0,234.19,234.08,10.6797]
[1731848487913,23.776884,234.18,234.08,10.6797]
[1731848488123,4.2705,234.16,234.08,10.6797]
[1731848489005,4.2705,234.16,234.01,45.4068]
[1731848489220,4.2705,234.16,234.03,14.9552]
[1731848489812,20.0,234.14,234.03,10.6823]
[1731848490127,23.902374,234.15,234.03,10.6823]
[1731848490128,4.2714,234.11,234.03,10.6823]
[1731848491223,4.271,234.14,234.03,10.6823]
[1731848492434,20.0,234.16,234.03,10.6823]
[1731848493021,4.2704,234.17,234.03,10.6823]
[1731848493228,4.2694,234.22,234.04,24.127864]
[1731848493634,4.2694,234.22,234.04,24.027864]
[1731848493926,4.2694,234.22,234.05,1.25]
[1731848494130,4.2694,234.22,234.06,24.127864]
[1731848494520,4.2694,234.22,234.07,14.9527]
[1731848495812,0.08964121,234.08,234.07,14.9527]
[1731848496031,33.1965,234.24,234.12,159.38522728]
[1731848496324,33.1965,234.24,234.07,14.9527]
[1731848497230,10.6738,234.22,234.02,10.6825]
[1731848497421,4.36398373,234.15,234.03,4.2728]
[1731848497622,4.36398373,234.15,234.03,14.9551]
[1731848498718,0.09318373,234.15,234.04,23.902374]
[1731848499125,0.09318373,234.15,234.04,23.776884]
[1731848499437,4.35738808,234.14,234.03,14.9551]
[1731848500328,0.08638808,234.14,234.03,14.9551]
[1731848500519,0.08638808,234.14,234.04,0.25098]
[1731848501026,0.08638808,234.14,234.04,24.027864]
[1731848501521,0.08638808,234.14,234.06,24.127864]
[1731848502920,0.08638808,234.14,234.08,24.027864]
[1731848504044,0.08638808,234.14,234.1,0.25098]
[1731848505536,0.08638808,234.14,234.11,10.6787]
[1731848505712,0.08638808,234.14,234.09,4.2718]
[1731848506317,0.08638808,234.14,234.08,10.6801]
[1731848507125,4.35683921,234.13,234.08,10.6801]
[1731848507331,4.35683921,234.13,234.04,4.2726]
[1731848507643,4.35683921,234.13,234.03,10.682]
[1731848511360,4.35683921,234.13,234.02,4.2731]
[1731848512226,4.35683921,234.13,233.99,0.12549]
[1731848512428,4.35683921,234.13,233.99,0.25098]
[1731848513336,0.08573921,234.13,233.99,60.454064]
[1731848515846,7.93e-06,234.02,234.01,0.32549]
[1731848516070,4.2696,234.22,234.15,159.20272365]
[1731848516240,4.2696,234.22,234.05,0.1]
[1731848517131,4.2696,234.22,234.06,36.3154]
[1731848517334,4.2696,234.22,234.07,24.027864]
[1731848518140,4.2696,234.22,234.08,14.9521]
[1731848518743,4.2696,234.22,234.09,0.25098]
[1731848518944,12.1273,234.25,234.09,24.027864]
[1731848519127,37.4657,234.24,234.09,24.027864]
[1731848520244,37.4657,234.24,234.11,0.25098]
[1731848520423,12.1553,234.32,234.18,0.22549]
[1731848520749,35.2264,234.36,234.18,0.25098]
[1731848521123,35.2264,234.36,234.16,24.027864]
[1731848521530,35.2264,234.36,234.18,0.1]
[1731848521721,35.2264,234.36,234.2,0.25098]
[1731848522047,35.2264,234.36,234.2,24.027864]
[1731848523225,20.0,234.37,234.21,12.1674]
[1731848523531,20.0,234.37,234.22,56.296164]
[1731848523848,20.0,234.39,234.24,24.027864]
[1731848524045,35.2257,234.4,234.24,24.027864]
[1731848524343,30.9594,234.4,234.24,24.027864]
[1731848524547,12.1553,234.43,234.28,0.1]
[1731848524849,4.2648,234.48,234.3,0.1]
[1731848525637,4.2648,234.48,234.31,36.2766]
[1731848525839,4.2648,234.48,234.31,14.9374]
[1731848526029,24.2648,234.48,234.31,14.9374]
[1731848526545,12.1553,234.49,234.32,24.027864]
[1731848527437,12.1553,234.49,234.32,24.127864]
[1731848527845,12.1553,234.49,234.34,24.027864]
[1731848528228,4.2643,234.51,234.34,36.295264]
[1731848529047,30.9594,234.52,234.36,0.1]
[1731848529257,30.9594,234.52,234.36,0.35098]
[1731848529550,4.2638,234.53,234.36,24.127864]
[1731848529956,12.1553,234.55,234.4,0.1]
[1731848530246,30.9594,234.58,234.42,0.22549]
[1731848530428,16.4177,234.61,234.43,0.25098]
[1731848531449,16.4177,234.61,234.44,24.027864]
[1731848531647,4.262,234.63,234.46,24.027864]
[1731848532743,4.262,234.63,234.47,4.2649]
[1731848532948,4.262,234.63,234.48,0.25098]
[1731848533952,4.262,234.63,234.49,14.9259]
[1731848534249,20.0,234.61,234.49,14.9259]
[1731848535037,4.262,234.63,234.49,14.9259]
[1731848535232,24.262,234.63,234.49,10.6614]
[1731848536249,20.0,234.61,234.49,10.6614]
[1731848536446,24.262,234.63,234.49,10.6614]
[1731848536447,4.262,234.63,234.49,10.6614]
[1731848536650,27.693104,234.77,234.5,44.127864]
[1731848536834,27.693104,234.77,234.51,0.1]
[1731848537236,10.6488,234.77,234.51,0.1]
[1731848537443,4.2596,234.76,234.55,24.027864]
[1731848537744,4.2596,234.76,234.58,0.1]
[1731848537947,4.2596,234.76,234.6,24.027864]
[1731848538251,4.2596,234.76,234.6,14.9189]
[1731848539746,24.027864,234.73,234.6,10.6564]
[1731848539951,4.2596,234.76,234.6,14.9189]
[1731848540253,3.7596,234.76,234.61,24.027864]
[1731848540948,4.7263907,234.79,234.61,24.027864]
[1731848541157,0.4671907,234.79,234.61,24.027864]
[1731848541358,0.4671907,234.79,234.65,24.127864]
[1731848541655,0.4671907,234.79,234.67,0.12549]
[1731848541949,0.4671907,234.79,234.67,24.027864]
[1731848542254,0.4671907,234.79,234.67,24.127864]
[1731848542466,0.4671907,234.79,234.67,24.227864]
[1731848542633,0.4671907,234.79,234.67,24.027864]
[1731848542835,0.4671907,234.79,234.67,0.25098]
[1731848543759,4.7263907,234.79,234.66,14.9151]
[1731848544549,0.4671907,234.79,234.66,14.9151]
[1731848545032,0.4671907,234.79,234.67,24.027864]